[Event "*** Titled Tuesday Blitz"]
[Site "Chess.com"]
[Date "2019.01.01"]
[Round "2"]
[White "MikePerelshteyn"]
[Black "Litti"]
[Result "1/2-1/2"]
[WhiteElo "2455"]
[BlackElo "2506"]
[TimeControl "180+2"]
[EndTime "13:18:20 PST"]
[Termination "Game drawn by repetition"]

1. e4 {[%clk 0:03:01.9]} 1... c5 {[%clk 0:03:00.8]} 2. Nc3 {[%clk 0:03:02]} 2...
Nc6 {[%clk 0:03:00.8]} 3. f4 {[%clk 0:03:02.4]} 3... e6 {[%clk 0:03:00.3]} 4.
Nf3 {[%clk 0:03:02.5]} 4... Nge7 {[%clk 0:02:58.9]} 5. g3 {[%clk 0:02:58.8]}
5... d5 {[%clk 0:02:59.7]} 6. Bg2 {[%clk 0:02:55.4]} 6... g6 {[%clk 0:02:59.8]}
7. d3 {[%clk 0:02:54.4]} 7... Bg7 {[%clk 0:03:00.1]} 8. O-O {[%clk 0:02:55.1]}
8... O-O {[%clk 0:03:01.1]} 9. g4 {[%clk 0:02:46.2]} 9... Rb8 {[%clk 0:02:58.6]}
10. a4 {[%clk 0:02:45.1]} 10... a6 {[%clk 0:02:59.4]} 11. Qe1 {[%clk 0:02:33.4]}
11... b5 {[%clk 0:02:58.5]} 12. axb5 {[%clk 0:02:33.7]} 12... axb5 {[%clk
0:03:00.4]} 13. Qh4 {[%clk 0:02:31.8]} 13... Nd4 {[%clk 0:02:45.8]} 14. Nxd4
{[%clk 0:02:20.9]} 14... cxd4 {[%clk 0:02:46.5]} 15. Ne2 {[%clk 0:02:20.1]}
15... dxe4 {[%clk 0:02:43.5]} 16. Bxe4 {[%clk 0:02:19.9]} 16... Bb7 {[%clk
0:02:41.7]} 17. Ng3 {[%clk 0:02:09.8]} 17... Nd5 {[%clk 0:02:29.8]} 18. Qxd8
{[%clk 0:02:04.4]} 18... Rfxd8 {[%clk 0:02:28.7]} 19. f5 {[%clk 0:02:05.2]}
19... exf5 {[%clk 0:02:26.1]} 20. gxf5 {[%clk 0:02:05.7]} 20... Nb4 {[%clk
0:02:17.1]} 21. Ra7 {[%clk 0:01:45]} 21... Bxe4 {[%clk 0:02:00]} 22. Nxe4 {[%clk
0:01:45.7]} 22... Ra8 {[%clk 0:01:39.9]} 23. Rb7 {[%clk 0:01:31.7]} 23... Rab8
{[%clk 0:01:37.6]} 24. Ra7 {[%clk 0:01:18.9]} 24... Ra8 {[%clk 0:01:38.3]} 25.
Rb7 {[%clk 0:01:19.4]} 25... Rab8 {[%clk 0:01:39.4]} 26. Ra7 {[%clk 0:01:18.7]}
1/2-1/2

[Event "*** Titled Tuesday Blitz"]
[Site "Chess.com"]
[Date "2019.01.01"]
[Round "2"]
[White "Quiet_Desperation"]
[Black "Koksik_13"]
[Result "1-0"]
[WhiteElo "2377"]
[BlackElo "2679"]
[TimeControl "180+2"]
[EndTime "13:18:34 PST"]
[Termination "Quiet_Desperation won by resignation"]

1. e4 {[%clk 0:03:01.9]} 1... e6 {[%clk 0:02:59]} 2. d4 {[%clk 0:03:02.8]} 2...
d5 {[%clk 0:03:00.5]} 3. Nc3 {[%clk 0:03:04.5]} 3... Bb4 {[%clk 0:02:58]} 4. e5
{[%clk 0:03:05.4]} 4... c5 {[%clk 0:02:57.9]} 5. Bd2 {[%clk 0:03:06.9]} 5... Ne7
{[%clk 0:02:26.1]} 6. Nf3 {[%clk 0:03:05.2]} 6... O-O {[%clk 0:02:25.7]} 7. Bd3
{[%clk 0:03:05.6]} 7... cxd4 {[%clk 0:02:22.6]} 8. Bxh7+ {[%clk 0:03:05.3]} 8...
Kh8 {[%clk 0:02:01.7]} 9. Ng5 {[%clk 0:02:59.9]} 9... g6 {[%clk 0:01:49.6]} 10.
h4 {[%clk 0:02:56.3]} 10... dxc3 {[%clk 0:01:46.4]} 11. bxc3 {[%clk 0:02:57.5]}
11... Qc7 {[%clk 0:01:32.9]} 12. cxb4 {[%clk 0:02:46.6]} 12... Qxe5+ {[%clk
0:01:31.1]} 13. Kf1 {[%clk 0:02:47.5]} 13... f6 {[%clk 0:01:18.6]} 14. Bxg6
{[%clk 0:02:28.3]} 14... Kg7 {[%clk 0:00:48.6]} 15. Nf3 {[%clk 0:02:11.4]} 15...
Qc7 {[%clk 0:00:22.4]} 16. h5 {[%clk 0:02:11.8]} 16... Nxg6 {[%clk 0:00:19.3]}
17. hxg6 {[%clk 0:02:11.8]} 17... Kxg6 {[%clk 0:00:17.2]} 18. Nd4 {[%clk
0:01:57.6]} 18... e5 {[%clk 0:00:12.5]} 19. Qh5+ {[%clk 0:01:56.7]} 1-0

[Event "*** Titled Tuesday Blitz"]
[Site "Chess.com"]
[Date "2019.01.01"]
[Round "2"]
[White "Triumphmate"]
[Black "Blagorod"]
[Result "1-0"]
[WhiteElo "2228"]
[BlackElo "2109"]
[TimeControl "180+2"]
[EndTime "13:18:47 PST"]
[Termination "Triumphmate won by resignation"]

1. e4 {[%clk 0:03:01.9]} 1... e5 {[%clk 0:03:00.5]} 2. Nf3 {[%clk 0:03:01.3]}
2... Nf6 {[%clk 0:03:00.8]} 3. Nc3 {[%clk 0:02:56]} 3... Bb4 {[%clk 0:03:00.9]}
4. Bc4 {[%clk 0:02:52.4]} 4... O-O {[%clk 0:03:00.9]} 5. d3 {[%clk 0:02:52.4]}
5... d6 {[%clk 0:02:53]} 6. h3 {[%clk 0:02:47.4]} 6... h6 {[%clk 0:02:52.3]} 7.
O-O {[%clk 0:02:47.5]} 7... c6 {[%clk 0:02:47.5]} 8. Bb3 {[%clk 0:02:47.4]} 8...
Nbd7 {[%clk 0:02:40.8]} 9. Ne2 {[%clk 0:02:46.7]} 9... Nc5 {[%clk 0:02:36.1]}
10. c3 {[%clk 0:02:46.9]} 10... Nxb3 {[%clk 0:02:35.7]} 11. Qxb3 {[%clk
0:02:44.4]} 11... Ba5 {[%clk 0:02:30.8]} 12. Ng3 {[%clk 0:02:45.8]} 12... Bb6
{[%clk 0:02:24.1]} 13. Be3 {[%clk 0:02:45.3]} 13... Be6 {[%clk 0:02:19.4]} 14.
Qc2 {[%clk 0:02:45.9]} 14... Bc7 {[%clk 0:02:12.7]} 15. d4 {[%clk 0:02:46]}
15... Qd7 {[%clk 0:02:02.1]} 16. Rad1 {[%clk 0:02:46.5]} 16... exd4 {[%clk
0:01:43.3]} 17. cxd4 {[%clk 0:02:46.5]} 17... Nh7 {[%clk 0:01:18.2]} 18. d5
{[%clk 0:02:44.8]} 18... Bxh3 {[%clk 0:01:08.5]} 19. gxh3 {[%clk 0:02:45.2]}
19... Qxh3 {[%clk 0:01:09.3]} 20. Qe2 {[%clk 0:02:33.4]} 20... c5 {[%clk
0:00:58.9]} 21. Nh2 {[%clk 0:02:31.7]} 21... Nf6 {[%clk 0:00:55.4]} 22. Qf3
{[%clk 0:02:28.3]} 22... Rae8 {[%clk 0:00:41.9]} 23. Qg2 {[%clk 0:02:18.2]}
23... Qh4 {[%clk 0:00:33.4]} 24. Nf5 {[%clk 0:02:15]} 1-0

[Event "*** Titled Tuesday Blitz"]
[Site "Chess.com"]
[Date "2019.01.01"]
[Round "2"]
[White "Shivagami"]
[Black "jmduque"]
[Result "0-1"]
[WhiteElo "2135"]
[BlackElo "2214"]
[TimeControl "180+2"]
[EndTime "13:18:56 PST"]
[Termination "jmduque won by resignation"]

1. d4 {[%clk 0:03:01.9]} 1... Nf6 {[%clk 0:03:00.4]} 2. Bf4 {[%clk 0:03:02]}
2... d5 {[%clk 0:03:01]} 3. e3 {[%clk 0:03:03.2]} 3... c5 {[%clk 0:03:01.2]} 4.
c3 {[%clk 0:03:03.4]} 4... Nc6 {[%clk 0:03:02.3]} 5. Nd2 {[%clk 0:03:04.1]} 5...
e6 {[%clk 0:02:59.9]} 6. Ngf3 {[%clk 0:03:04.7]} 6... cxd4 {[%clk 0:02:58.4]} 7.
exd4 {[%clk 0:03:04.8]} 7... Nh5 {[%clk 0:03:00.3]} 8. Bg5 {[%clk 0:03:02.2]}
8... f6 {[%clk 0:03:01.4]} 9. Be3 {[%clk 0:03:02.2]} 9... Bd6 {[%clk 0:03:01.9]}
10. Ne5 {[%clk 0:02:52.6]} 10... g6 {[%clk 0:03:00.9]} 11. Nd3 {[%clk 0:02:48]}
11... O-O {[%clk 0:03:00]} 12. f4 {[%clk 0:02:47.5]} 12... e5 {[%clk 0:03:00]}
13. dxe5 {[%clk 0:02:37.7]} 13... fxe5 {[%clk 0:03:01.1]} 14. fxe5 {[%clk
0:02:33]} 14... Nxe5 {[%clk 0:03:01.8]} 15. Nxe5 {[%clk 0:02:34]} 15... Bxe5
{[%clk 0:03:01.7]} 16. Nf3 {[%clk 0:02:35.6]} 16... Bf4 {[%clk 0:03:00.3]} 17.
Bd4 {[%clk 0:02:22.4]} 17... Bg4 {[%clk 0:02:55.5]} 18. Be2 {[%clk 0:02:19.6]}
18... Bxf3 {[%clk 0:02:54.6]} 19. Bxf3 {[%clk 0:02:17.9]} 19... Qh4+ {[%clk
0:02:54.6]} 20. Bf2 {[%clk 0:02:16.2]} 20... Rae8+ {[%clk 0:02:44.3]} 21. Kf1
{[%clk 0:01:55.7]} 21... Ng3+ {[%clk 0:02:44.9]} 22. Kg1 {[%clk 0:01:56.8]}
22... Ne2+ {[%clk 0:02:20.8]} 23. Bxe2 {[%clk 0:01:45]} 23... Be3 {[%clk
0:02:16]} 24. Bxe3 {[%clk 0:01:32]} 24... Rxe3 {[%clk 0:02:16.8]} 25. Qe1 {[%clk
0:01:02.4]} 25... Qe4 {[%clk 0:02:04.6]} 26. Rd1 {[%clk 0:00:39.9]} 26... Rxe2
{[%clk 0:02:03.6]} 27. Qg3 {[%clk 0:00:41.4]} 27... Rxg2+ {[%clk 0:02:00.6]} 28.
Qxg2 {[%clk 0:00:37.9]} 28... Qe3+ {[%clk 0:02:01.9]} 0-1

[Event "*** Titled Tuesday Blitz"]
[Site "Chess.com"]
[Date "2019.01.01"]
[Round "2"]
[White "LucaBrasi1968"]
[Black "florianschwabeneder"]
[Result "1/2-1/2"]
[WhiteElo "2414"]
[BlackElo "2450"]
[TimeControl "180+2"]
[EndTime "13:19:01 PST"]
[Termination "Game drawn by repetition"]

1. d4 {[%clk 0:03:01]} 1... Nf6 {[%clk 0:02:59.8]} 2. Nf3 {[%clk 0:03:01]} 2...
c5 {[%clk 0:03:00.8]} 3. c3 {[%clk 0:03:01.2]} 3... e6 {[%clk 0:03:01.5]} 4. Bg5
{[%clk 0:03:01.7]} 4... h6 {[%clk 0:03:00.1]} 5. Bh4 {[%clk 0:03:01.8]} 5... d5
{[%clk 0:03:01.2]} 6. e3 {[%clk 0:03:02]} 6... Nbd7 {[%clk 0:03:00.9]} 7. Nbd2
{[%clk 0:03:02.9]} 7... b6 {[%clk 0:03:01.7]} 8. Bd3 {[%clk 0:03:02.6]} 8... Bb7
{[%clk 0:03:02.7]} 9. O-O {[%clk 0:03:02.6]} 9... Be7 {[%clk 0:03:04]} 10. Qe2
{[%clk 0:03:03.2]} 10... O-O {[%clk 0:03:04.2]} 11. h3 {[%clk 0:03:04.2]} 11...
Re8 {[%clk 0:02:52.4]} 12. Bg3 {[%clk 0:03:02.6]} 12... Qc8 {[%clk 0:02:47.9]}
13. a4 {[%clk 0:03:00.9]} 13... a6 {[%clk 0:02:47]} 14. Bh2 {[%clk 0:03:00.8]}
14... Bc6 {[%clk 0:02:47.3]} 15. Ne5 {[%clk 0:02:59.6]} 15... Nxe5 {[%clk
0:02:47.1]} 16. Bxe5 {[%clk 0:03:00.2]} 16... Qb7 {[%clk 0:02:46.5]} 17. Nf3
{[%clk 0:02:58.5]} 17... Ne4 {[%clk 0:02:42.5]} 18. Bh2 {[%clk 0:02:58.7]} 18...
Bf6 {[%clk 0:02:28]} 19. Ne5 {[%clk 0:02:58.1]} 19... Nd6 {[%clk 0:02:10.7]} 20.
Nxc6 {[%clk 0:02:54.7]} 20... Qxc6 {[%clk 0:02:12.6]} 21. Bxd6 {[%clk
0:02:48.9]} 21... c4 {[%clk 0:02:00.3]} 22. Bg3 {[%clk 0:02:40.4]} 22... cxd3
{[%clk 0:02:00.7]} 23. Qxd3 {[%clk 0:02:41.3]} 23... b5 {[%clk 0:02:01.9]} 24.
axb5 {[%clk 0:02:40.7]} 24... axb5 {[%clk 0:02:01.6]} 25. Rfc1 {[%clk
0:02:27.8]} 25... Rec8 {[%clk 0:02:01.8]} 26. Qf1 {[%clk 0:02:27.4]} 26... Be7
{[%clk 0:02:02.3]} 27. Rxa8 {[%clk 0:02:26.6]} 27... Rxa8 {[%clk 0:02:02.5]} 28.
Ra1 {[%clk 0:02:27.3]} 28... Ra4 {[%clk 0:02:01.7]} 29. b3 {[%clk 0:02:11.5]}
29... Ra6 {[%clk 0:01:56.4]} 30. Rxa6 {[%clk 0:02:10.9]} 30... Qxa6 {[%clk
0:01:55.9]} 31. Qb1 {[%clk 0:02:10.1]} 31... Qa3 {[%clk 0:01:50.6]} 32. Qc2
{[%clk 0:02:10.6]} 32... Qa6 {[%clk 0:01:46.6]} 33. Kh2 {[%clk 0:02:07.6]} 33...
Bf6 {[%clk 0:01:43.5]} 34. Qd3 {[%clk 0:02:02.2]} 34... Qc6 {[%clk 0:01:40.3]}
35. Qc2 {[%clk 0:01:59.7]} 35... Be7 {[%clk 0:01:40.5]} 36. Qd3 {[%clk 0:01:55]}
36... Bf8 {[%clk 0:01:40.7]} 37. f3 {[%clk 0:01:55.1]} 37... Be7 {[%clk
0:01:35.4]} 38. e4 {[%clk 0:01:55]} 38... Bf8 {[%clk 0:01:36.6]} 39. exd5 {[%clk
0:01:53.9]} 39... exd5 {[%clk 0:01:37.5]} 40. Kg1 {[%clk 0:01:49.5]} 40... Be7
{[%clk 0:01:37.6]} 41. Kh2 {[%clk 0:01:49.5]} 41... Bf8 {[%clk 0:01:38.5]} 42.
Kg1 {[%clk 0:01:50]} 42... Be7 {[%clk 0:01:39.5]} 43. Kh2 {[%clk 0:01:50.8]}
43... Bf8 {[%clk 0:01:40.7]} 1/2-1/2

[Event "*** Titled Tuesday Blitz"]
[Site "Chess.com"]
[Date "2019.01.01"]
[Round "2"]
[White "jerom555888"]
[Black "Bryakin_Mikhail"]
[Result "0-1"]
[WhiteElo "2694"]
[BlackElo "2688"]
[TimeControl "180+2"]
[EndTime "13:19:08 PST"]
[Termination "Bryakin_Mikhail won by resignation"]

1. Nf3 {[%clk 0:03:01.9]} 1... Nf6 {[%clk 0:02:56.6]} 2. d4 {[%clk 0:03:02.1]}
2... d5 {[%clk 0:02:52.3]} 3. Bf4 {[%clk 0:03:02.4]} 3... c5 {[%clk 0:02:53.1]}
4. e3 {[%clk 0:03:03.3]} 4... Nc6 {[%clk 0:02:54.1]} 5. c3 {[%clk 0:03:03.9]}
5... Qb6 {[%clk 0:02:54.6]} 6. Qb3 {[%clk 0:03:04.5]} 6... c4 {[%clk 0:02:41.1]}
7. Qc2 {[%clk 0:03:03.3]} 7... Bf5 {[%clk 0:02:41]} 8. Qc1 {[%clk 0:03:03.8]}
8... e6 {[%clk 0:02:40.9]} 9. Nbd2 {[%clk 0:03:04.4]} 9... h6 {[%clk 0:02:41.4]}
10. h3 {[%clk 0:03:04]} 10... Be7 {[%clk 0:02:42.1]} 11. Be2 {[%clk 0:03:02.1]}
11... O-O {[%clk 0:02:37.6]} 12. O-O {[%clk 0:03:02.5]} 12... Rfc8 {[%clk
0:02:35.5]} 13. Re1 {[%clk 0:03:03.8]} 13... Qd8 {[%clk 0:02:34.8]} 14. Bd1
{[%clk 0:03:04.2]} 14... b5 {[%clk 0:02:34.4]} 15. a3 {[%clk 0:03:01.4]} 15...
a5 {[%clk 0:02:34.7]} 16. Bc2 {[%clk 0:03:02.8]} 16... Bd6 {[%clk 0:02:26.6]}
17. Ne5 {[%clk 0:02:47.8]} 17... Bxc2 {[%clk 0:02:07.9]} 18. Qxc2 {[%clk
0:02:48.7]} 18... Bxe5 {[%clk 0:02:08.8]} 19. dxe5 {[%clk 0:02:49.8]} 19... Nd7
{[%clk 0:02:10.3]} 20. Nf3 {[%clk 0:02:51]} 20... Nc5 {[%clk 0:02:11.4]} 21.
Rad1 {[%clk 0:02:47.2]} 21... Nd3 {[%clk 0:02:09.7]} 22. Re2 {[%clk 0:02:46.7]}
22... b4 {[%clk 0:02:08]} 23. Red2 {[%clk 0:02:45.7]} 23... bxa3 {[%clk
0:02:03.4]} 24. bxa3 {[%clk 0:02:47]} 24... Rab8 {[%clk 0:02:04.8]} 25. Rxd3
{[%clk 0:02:47.9]} 25... cxd3 {[%clk 0:02:05.6]} 26. Qxd3 {[%clk 0:02:44.9]}
26... Qb6 {[%clk 0:01:55.6]} 27. e4 {[%clk 0:02:45.1]} 27... Rd8 {[%clk
0:01:49]} 28. Nd4 {[%clk 0:02:43]} 28... Nxd4 {[%clk 0:01:37.5]} 29. cxd4 {[%clk
0:02:44]} 29... Qb3 {[%clk 0:01:35.4]} 30. exd5 {[%clk 0:02:44.8]} 30... Qxd3
{[%clk 0:01:35.5]} 31. Rxd3 {[%clk 0:02:46.7]} 31... Rxd5 {[%clk 0:01:37.1]} 32.
Be3 {[%clk 0:02:48.1]} 32... a4 {[%clk 0:01:37.1]} 33. Rc3 {[%clk 0:02:48.9]}
33... Rb3 {[%clk 0:01:38.4]} 34. Rc8+ {[%clk 0:02:49.9]} 34... Kh7 {[%clk
0:01:39.3]} 35. Rc7 {[%clk 0:02:51.8]} 35... Kg6 {[%clk 0:01:40.2]} 36. Ra7
{[%clk 0:02:51.2]} 36... Rxa3 {[%clk 0:01:41.3]} 37. g4 {[%clk 0:02:52.9]} 37...
Ra1+ {[%clk 0:01:34]} 38. Kg2 {[%clk 0:02:54.2]} 38... a3 {[%clk 0:01:35.9]} 39.
Kf3 {[%clk 0:02:55.6]} 39... a2 {[%clk 0:01:37]} 40. Ke4 {[%clk 0:02:57.1]}
40... Rb5 {[%clk 0:01:37.6]} 41. f4 {[%clk 0:02:58.4]} 41... Rb2 {[%clk
0:01:30.1]} 42. f5+ {[%clk 0:02:59.3]} 42... Kh7 {[%clk 0:01:28.5]} 43. f6
{[%clk 0:02:58.3]} 43... Re1 {[%clk 0:00:58.4]} 44. Rxf7 {[%clk 0:02:50]} 44...
Rxe3+ {[%clk 0:00:56.6]} 45. Kxe3 {[%clk 0:02:50.8]} 45... a1=Q {[%clk
0:00:56.3]} 46. Rxg7+ {[%clk 0:02:48.2]} 46... Kh8 {[%clk 0:00:56.1]} 0-1

[Event "*** Titled Tuesday Blitz"]
[Site "Chess.com"]
[Date "2019.01.01"]
[Round "2"]
[White "pawnhopper316"]
[Black "harperchesstt"]
[Result "0-1"]
[WhiteElo "2232"]
[BlackElo "2117"]
[TimeControl "180+2"]
[EndTime "13:19:26 PST"]
[Termination "harperchesstt won by resignation"]

1. e4 {[%clk 0:03:00.1]} 1... c5 {[%clk 0:03:00.2]} 2. d4 {[%clk 0:02:59.7]}
2... cxd4 {[%clk 0:02:58.7]} 3. c3 {[%clk 0:02:59]} 3... dxc3 {[%clk 0:02:59.8]}
4. Nxc3 {[%clk 0:03:00.3]} 4... e6 {[%clk 0:03:01.4]} 5. Nf3 {[%clk 0:03:01.2]}
5... a6 {[%clk 0:03:02.5]} 6. Bc4 {[%clk 0:03:02.2]} 6... b5 {[%clk 0:03:03.6]}
7. Bb3 {[%clk 0:03:02.3]} 7... Bb7 {[%clk 0:03:04.6]} 8. O-O {[%clk 0:03:02.8]}
8... d6 {[%clk 0:03:05]} 9. Qe2 {[%clk 0:03:03.7]} 9... Nd7 {[%clk 0:03:06]} 10.
Rd1 {[%clk 0:03:04.9]} 10... Be7 {[%clk 0:03:06.9]} 11. Bc2 {[%clk 0:03:02.3]}
11... Ngf6 {[%clk 0:03:04.8]} 12. Bg5 {[%clk 0:02:58.5]} 12... O-O {[%clk
0:03:03.4]} 13. Rac1 {[%clk 0:02:51.7]} 13... Qb8 {[%clk 0:03:00.5]} 14. Bb1
{[%clk 0:02:33.6]} 14... Re8 {[%clk 0:02:57.1]} 15. a3 {[%clk 0:02:32.1]} 15...
Ne5 {[%clk 0:02:55.8]} 16. Nxe5 {[%clk 0:02:30.4]} 16... dxe5 {[%clk 0:02:56.5]}
17. Bxf6 {[%clk 0:02:08.5]} 17... Bxf6 {[%clk 0:02:55.2]} 18. Rd7 {[%clk
0:02:08.8]} 18... Bc6 {[%clk 0:02:54.2]} 19. Rd3 {[%clk 0:02:05.6]} 19... Qb7
{[%clk 0:02:54.2]} 20. Rg3 {[%clk 0:02:03.5]} 20... g6 {[%clk 0:02:54.7]} 21.
Qf3 {[%clk 0:01:59.1]} 21... Bg7 {[%clk 0:02:51]} 22. h4 {[%clk 0:01:59.3]}
22... h5 {[%clk 0:02:44.8]} 23. Re1 {[%clk 0:01:42.8]} 23... Rad8 {[%clk
0:02:44.4]} 24. Qe2 {[%clk 0:01:42.3]} 24... Rd4 {[%clk 0:02:41.7]} 25. Rd3
{[%clk 0:01:37.1]} 25... Red8 {[%clk 0:02:40.9]} 26. Rdd1 {[%clk 0:01:35.1]}
26... a5 {[%clk 0:02:40.2]} 27. b4 {[%clk 0:01:30.9]} 27... axb4 {[%clk
0:02:39.7]} 28. axb4 {[%clk 0:01:32.8]} 28... Bf8 {[%clk 0:02:37.2]} 29. Na2
{[%clk 0:01:32.9]} 29... Qa8 {[%clk 0:02:21.1]} 30. Rxd4 {[%clk 0:01:29.8]}
30... exd4 {[%clk 0:02:18.7]} 31. Rd1 {[%clk 0:01:25.7]} 31... e5 {[%clk
0:02:10.4]} 32. Qb2 {[%clk 0:01:22.4]} 32... Bxe4 {[%clk 0:02:07.1]} 33. Nc1
{[%clk 0:01:21.7]} 33... Bxb1 {[%clk 0:02:04.2]} 34. Qxb1 {[%clk 0:01:23.6]}
34... e4 {[%clk 0:02:04.6]} 35. Nb3 {[%clk 0:01:22.9]} 35... d3 {[%clk
0:01:59.4]} 36. Na5 {[%clk 0:01:21.8]} 36... Rd4 {[%clk 0:01:56.4]} 37. Qa1
{[%clk 0:00:50.6]} 37... Rxb4 {[%clk 0:01:50.1]} 38. Re1 {[%clk 0:00:49.6]} 0-1

[Event "*** Titled Tuesday Blitz"]
[Site "Chess.com"]
[Date "2019.01.01"]
[Round "2"]
[White "ChessChronicles123"]
[Black "ori99"]
[Result "0-1"]
[WhiteElo "1816"]
[BlackElo "2012"]
[TimeControl "180+2"]
[EndTime "13:19:48 PST"]
[Termination "ori99 won by resignation"]

1. Nf3 {[%clk 0:03:01.9]} 1... d5 {[%clk 0:02:59.8]} 2. g3 {[%clk 0:03:03.8]}
2... Nf6 {[%clk 0:02:55.4]} 3. Bg2 {[%clk 0:03:05.7]} 3... e6 {[%clk 0:02:53.8]}
4. c4 {[%clk 0:03:07.3]} 4... c6 {[%clk 0:02:52.5]} 5. O-O {[%clk 0:03:08.4]}
5... Be7 {[%clk 0:02:53.1]} 6. Nc3 {[%clk 0:03:09.1]} 6... O-O {[%clk 0:02:53]}
7. Ne5 {[%clk 0:03:08.8]} 7... Nbd7 {[%clk 0:02:52]} 8. d4 {[%clk 0:03:06.5]}
8... Qb6 {[%clk 0:02:41.8]} 9. cxd5 {[%clk 0:03:05]} 9... cxd5 {[%clk
0:02:38.9]} 10. Na4 {[%clk 0:02:55.7]} 10... Qd8 {[%clk 0:02:21.3]} 11. Bd2
{[%clk 0:02:33.3]} 11... Bd6 {[%clk 0:02:08.5]} 12. f4 {[%clk 0:02:28.6]} 12...
Qe7 {[%clk 0:02:08.7]} 13. Rc1 {[%clk 0:02:26.1]} 13... a6 {[%clk 0:01:58]} 14.
Ba5 {[%clk 0:01:55.6]} 14... b5 {[%clk 0:01:52.4]} 15. Nb6 {[%clk 0:01:56.2]}
15... Nxb6 {[%clk 0:01:46.8]} 16. Bxb6 {[%clk 0:01:57.2]} 16... Bb7 {[%clk
0:01:43.3]} 17. Rc3 {[%clk 0:01:34.5]} 17... Rac8 {[%clk 0:01:42.2]} 18. Qc2
{[%clk 0:01:14.7]} 18... Rxc3 {[%clk 0:01:33.9]} 19. Qxc3 {[%clk 0:01:15.5]}
19... Rc8 {[%clk 0:01:34.3]} 20. Qd2 {[%clk 0:01:16.3]} 20... Ne4 {[%clk
0:01:34.3]} 21. Bxe4 {[%clk 0:01:16.8]} 21... dxe4 {[%clk 0:01:34]} 22. Rc1
{[%clk 0:01:18.3]} 22... Qe8 {[%clk 0:01:02.3]} 23. Rc2 {[%clk 0:01:10.3]} 23...
f6 {[%clk 0:00:54.2]} 24. Ng4 {[%clk 0:00:53.9]} 24... Rc6 {[%clk 0:00:54.1]}
25. Bc5 {[%clk 0:00:52.7]} 25... Qd7 {[%clk 0:00:47.8]} 26. Qc1 {[%clk
0:00:52.3]} 26... Bxc5 {[%clk 0:00:43.5]} 27. Rxc5 {[%clk 0:00:50.6]} 27...
Qxd4+ {[%clk 0:00:43.7]} 0-1

[Event "*** Titled Tuesday Blitz"]
[Site "Chess.com"]
[Date "2019.01.01"]
[Round "2"]
[White "Generalas"]
[Black "matiss90"]
[Result "0-1"]
[WhiteElo "2243"]
[BlackElo "2436"]
[TimeControl "180+2"]
[EndTime "13:19:55 PST"]
[Termination "matiss90 won by checkmate"]

1. Nf3 {[%clk 0:03:01.9]} 1... Nf6 {[%clk 0:03:00.7]} 2. c4 {[%clk 0:03:02.1]}
2... g6 {[%clk 0:03:01.3]} 3. b3 {[%clk 0:03:02.4]} 3... Bg7 {[%clk 0:03:02.5]}
4. Bb2 {[%clk 0:03:04]} 4... d6 {[%clk 0:03:03.6]} 5. g3 {[%clk 0:03:05]} 5...
c5 {[%clk 0:03:03.5]} 6. Bg2 {[%clk 0:03:06.3]} 6... e5 {[%clk 0:03:03]} 7. O-O
{[%clk 0:03:04.2]} 7... O-O {[%clk 0:03:04]} 8. d3 {[%clk 0:03:02.6]} 8... Nc6
{[%clk 0:03:04.8]} 9. Nc3 {[%clk 0:03:01.5]} 9... h6 {[%clk 0:03:05.5]} 10. Qd2
{[%clk 0:03:00.4]} 10... Be6 {[%clk 0:03:06.1]} 11. Ne1 {[%clk 0:02:39.6]} 11...
Qd7 {[%clk 0:03:05.9]} 12. Nc2 {[%clk 0:02:40.1]} 12... Bh3 {[%clk 0:03:06]} 13.
Ne3 {[%clk 0:02:40.6]} 13... Bxg2 {[%clk 0:03:06.3]} 14. Kxg2 {[%clk 0:02:42.5]}
14... Nd4 {[%clk 0:03:06.5]} 15. Ned5 {[%clk 0:02:39.4]} 15... Nxd5 {[%clk
0:03:05.2]} 16. Nxd5 {[%clk 0:02:38.9]} 16... f5 {[%clk 0:03:00.9]} 17. e3
{[%clk 0:02:27.7]} 17... f4 {[%clk 0:03:01.7]} 18. exd4 {[%clk 0:02:13]} 18...
f3+ {[%clk 0:03:01.3]} 19. Kh1 {[%clk 0:02:11]} 19... Qh3 {[%clk 0:03:02]} 20.
Rg1 {[%clk 0:02:11.6]} 20... exd4 {[%clk 0:02:21.4]} 21. Rae1 {[%clk 0:01:50.5]}
21... Be5 {[%clk 0:02:07.6]} 22. Re4 {[%clk 0:01:43.5]} 22... g5 {[%clk
0:01:56.8]} 23. b4 {[%clk 0:01:33]} 23... b6 {[%clk 0:01:49]} 24. Ne7+ {[%clk
0:01:15]} 24... Kg7 {[%clk 0:01:38.9]} 25. Nc6 {[%clk 0:01:13.4]} 25... Rae8
{[%clk 0:01:37.1]} 26. bxc5 {[%clk 0:00:54.6]} 26... g4 {[%clk 0:01:28.8]} 27.
cxd6 {[%clk 0:00:23.5]} 27... Rf5 {[%clk 0:01:25.3]} 28. Rxe5 {[%clk 0:00:18.9]}
28... Rexe5 {[%clk 0:01:26]} 29. Nxe5 {[%clk 0:00:19.7]} 29... Qxh2+ {[%clk
0:01:26.4]} 30. Kxh2 {[%clk 0:00:18.8]} 30... Rh5# {[%clk 0:01:27.3]} 0-1